fUSD/lending_fUSD_20250416
["ID","MTS","AMOUNT","RATE_DAILY","PERIOD"]
[358178709,1744816366715,-1105.05,0.0005589,120]
[358178710,1744816366724,-500.0,0.0005589,120]
[358178711,1744816366734,-1002.17,0.0005589,120]
[358178712,1744816366743,-740.53,0.0005589,120]
[358178713,1744816366754,-500.0,0.0005589,120]
[358178714,1744816366763,-500.0,0.0005589,120]
[358178715,1744816366773,-563.62,0.0005589,30]
[358178716,1744816366783,-753.23,0.0005589,120]
[358178717,1744816366792,-500.0,0.0005589,120]
[358178718,1744816366802,-500.0,0.0005589,120]
[358178719,1744816366812,-508.84,0.0005589,120]
[358178720,1744816366822,-693.95,0.0005589,120]
[358178721,1744816366831,-500.0,0.0005589,14]
[358178722,1744816366840,-1260.37,0.0005589,120]
[358178723,1744816366850,-500.0,0.0005589,120]
[358178724,1744816366859,-758.9,0.0005589,120]
[358178725,1744816366869,-1826.89,0.0005589,120]
[358178726,1744816366878,-500.0,0.0005589,120]
[358178727,1744816366887,-500.0,0.0005589,120]
[358178728,1744816366896,-685.02,0.0005589,120]
[358178729,1744816366906,-500.0,0.0005589,120]
[358178730,1744816366915,-500.0,0.0005589,120]
[358178731,1744816366924,-667.82,0.0005589,120]
[358178732,1744816366933,-500.0,0.0005589,120]
[358178733,1744816366945,-500.0,0.0005589,120]
[358178734,1744816366955,-1108.66,0.0005589,120]
[358178735,1744816366965,-500.0,0.0005589,120]
[358178736,1744816366974,-687.69,0.0005589,120]
[358178737,1744816366983,-1033.16,0.0005589,120]
[358178738,1744816366992,-1795.89,0.0005589,120]
[358178739,1744816367001,-583.59,0.0005589,120]
[358178740,1744816367012,-500.0,0.0005589,120]
[358178741,1744816367022,-500.0,0.0005589,120]
[358178742,1744816367032,-500.0,0.0005589,120]
[358178743,1744816367043,-2030.25,0.0005589,120]
[358178744,1744816367052,-500.0,0.0005589,120]
[358178745,1744816367062,-818.2,0.0005589,120]
[358178746,1744816367071,-500.0,0.0005589,120]
[358178747,1744816367080,-771.35,0.0005589,120]
[358178748,1744816367090,-625.49133768,0.0005589,120]
[358178749,1744816367099,-500.0,0.0005589,120]
[358178750,1744816367109,-904.17,0.0005589,120]
[358178751,1744816367119,-980.77,0.0005589,120]
[358178752,1744816367128,-500.0,0.0005589,120]
[358178753,1744816367138,-756.77,0.0005589,120]
[358178754,1744816367147,-1324.33,0.0005589,120]
[358178755,1744816367155,-501.63,0.0005589,120]
[358178756,1744816367165,-983.87,0.0005589,120]
[358178757,1744816367174,-774.19,0.0005589,120]
[358178758,1744816367183,-519.62,0.0005589,120]
[358178759,1744816367192,-500.0,0.0005589,120]
[358178760,1744816367202,-500.0,0.0005589,120]
[358178761,1744816367212,-2150.43,0.0005589,120]
[358178762,1744816367222,-1188.94,0.0005589,120]
[358178763,1744816367231,-500.0,0.0005589,3]
[358178764,1744816367241,-695.81,0.0005589,118]
[358178765,1744816367250,-2664.25,0.0005589,120]
[358178766,1744816367259,-1200.0,0.0005589,120]
[358178767,1744816367268,-604.56,0.0005589,120]
[358178768,1744816367277,-500.0,0.0005589,120]
[358178769,1744816367287,-1283.85,0.0005589,120]
[358178770,1744816367297,-905.89,0.0005589,120]
[358178771,1744816367308,-748.27,0.0005589,120]
[358178772,1744816367318,-1176.6,0.0005589,120]
[358178773,1744816367328,-866.49,0.0005589,120]
[358178774,1744816367337,-500.0,0.0005589,120]
[358178775,1744816367347,-967.07,0.0005589,120]
[358178776,1744816367356,-500.0,0.0005589,120]
[358178777,1744816367365,-500.0,0.0005589,120]
[358178778,1744816367375,-500.0,0.0005589,120]
[358178779,1744816367385,-671.83,0.0005589,120]
[358178780,1744816367396,-500.0,0.0005589,120]
[358178781,1744816367406,-1850.78,0.0005589,120]
[358178782,1744816367415,-1800.53,0.0005589,120]
[358178783,1744816367424,-703.86,0.0005589,120]
[358178784,1744816367434,-521.97485199,0.0005589,120]
[358178785,1744816367443,-936.84,0.0005589,120]
[358178786,1744816367452,-272.27191023,0.0005589,120]
[358178787,1744816367462,-546.57,0.0005589,120]
[358178788,1744816367471,-1191.58,0.0005589,35]
[358178789,1744816367481,-1495.21,0.0005589,120]
[358178790,1744816367490,-929.38,0.0005589,120]
[358178791,1744816367500,-717.11,0.0005589,30]
[358178792,1744816367510,-515.12,0.0005589,120]
[358178793,1744816367520,-781.09,0.0005589,120]
[358178794,1744816367530,-242.78263704,0.0005589,120]
[358178795,1744816367540,-1870.74,0.0005589,120]
[358178796,1744816367550,-500.0,0.0005589,120]
[358178797,1744816367561,-961.01,0.0005589,120]
[358178798,1744816367570,-12177.31,0.0005589,120]
[358178799,1744816367581,-1524.54,0.0005589,120]
[358178800,1744816367591,-3102.96,0.0005589,120]
[358178801,1744816367601,-820.23,0.0005589,120]
[358178802,1744816367611,-270.65016418,0.0005589,120]
[358178803,1744816367621,-742.51,0.0005589,120]
[358178804,1744816367631,-845.8,0.0005589,120]
[358178805,1744816367641,-707.69,0.0005589,120]
[358178806,1744816367651,-522.09,0.0005589,120]
[358178807,1744816367661,-500.0,0.0005589,120]
[358178808,1744816367671,-769.64,0.0005589,120]
[358178809,1744816367682,-500.0,0.0005589,120]
[358178810,1744816367692,-500.0,0.0005589,120]
[358178811,1744816367703,-500.0,0.0005589,120]
[358178812,1744816367713,-1217.91,0.0005589,120]
[358178813,1744816367724,-200.0,0.00055895,15]
[358178814,1744816367734,-500.0,0.00055959,120]
[358178815,1744816367744,-250.0,0.00056,10]
[358178816,1744816367756,-580.0,0.00056,14]
[358178817,1744816367766,-278.0,0.00056,120]
[358178818,1744816367776,-1597.71022059,0.00056,120]
[358178819,1744816367788,-298.0,0.00056,120]
[358178820,1744816367797,-151.0,0.00056,120]
[358178821,1744816367808,-272.166906,0.00056,120]
[358178822,1744816367817,-272.166906,0.00056,120]
[358178823,1744816367827,-151.0,0.00056,120]
[358178824,1744816367838,-151.0,0.00056,120]
[358178825,1744816367848,-151.0,0.00056,120]
[358178826,1744816367858,-151.0,0.00056,120]
[358178827,1744816367868,-1000000.0,0.00056,120]
[358178828,1744816367877,-500.0,0.00056164,8]
[358178829,1744816367887,-500.0,0.00056164,120]
[358178830,1744816367897,-507.85,0.00056164,2]
[358178831,1744816367908,-500.0,0.00056164,2]
[358178832,1744816367919,-1354.34,0.00056164,120]
[358178833,1744816367935,-524.21,0.00056164,120]
[358178834,1744816367948,-754.91,0.00056164,120]
[358178835,1744816367959,-795.37,0.00056164,120]
[358178836,1744816367969,-282.13771731,0.00056164,120]
[358178837,1744816367980,-879.05,0.00056164,120]
[358178838,1744816367991,-795.56,0.00056164,120]
[358178839,1744816368002,-691.53,0.00056164,120]
[358178840,1744816368014,-500.0,0.00056164,120]
[358178841,1744816368026,-1105.05,0.00056164,120]
[358178842,1744816368037,-500.0,0.00056164,120]
[358178843,1744816368048,-1002.17,0.00056164,120]
[358178844,1744816368059,-740.53,0.00056164,120]
[358178845,1744816368069,-500.0,0.00056164,120]
[358178846,1744816368080,-500.0,0.00056164,120]
[358178847,1744816368091,-563.62,0.00056164,30]
[358178848,1744816368102,-753.23,0.00056164,120]
[358178849,1744816368113,-500.0,0.00056164,120]
[358178850,1744816368124,-206.94845561,0.00056164,120]
[358178851,1744816368135,-508.84,0.00056164,120]
[358178852,1744816368147,-693.95,0.00056164,120]
[358178853,1744816368157,-500.0,0.00056164,14]
[358178854,1744816368168,-1260.37,0.00056164,120]
[358178855,1744816368179,-530.94885203,0.00056164,120]
[358178856,1744816368189,-758.9,0.00056164,120]
[358178857,1744816368199,-1826.89,0.00056164,120]
[358178858,1744816368210,-500.0,0.00056164,120]
[358178859,1744816368221,-500.0,0.00056164,120]
[358178860,1744816368232,-685.02,0.00056164,120]
[358178861,1744816368493,-500.0,0.00056164,120]
[358178862,1744816368506,-500.0,0.00056164,120]
[358178863,1744816368518,-667.82,0.00056164,120]
[358178864,1744816368528,-500.0,0.00056164,120]
[358178865,1744816368538,-500.0,0.00056164,120]
[358178866,1744816368548,-1108.66,0.00056164,120]
[358178867,1744816368558,-152.23941537,0.00056164,120]
[358178868,1744816368568,-687.69,0.00056164,120]
[358178869,1744816368578,-1033.16,0.00056164,120]
[358178870,1744816368588,-1795.89,0.00056164,120]
[358178871,1744816368599,-583.59,0.00056164,120]
[358178872,1744816368609,-500.0,0.00056164,120]
[358178873,1744816368619,-621.12140013,0.00056164,120]
[358178874,1744816368629,-500.0,0.00056164,120]
[358178875,1744816368640,-2030.25,0.00056164,120]
[358178876,1744816368650,-500.0,0.00056164,120]
[358178877,1744816368661,-818.2,0.00056164,120]
[358178878,1744816368672,-500.0,0.00056164,120]
[358178879,1744816368682,-771.35,0.00056164,120]
[358178880,1744816368693,-500.0,0.00056164,120]
[358178881,1744816368703,-904.17,0.00056164,120]
[358178882,1744816368713,-980.77,0.00056164,120]
[358178883,1744816368724,-500.0,0.00056164,120]
[358178884,1744816368734,-500.0,0.00056164,120]
[358178885,1744816368744,-756.77,0.00056164,120]
[358178886,1744816368753,-501.63,0.00056164,120]
[358178887,1744816368763,-1324.33,0.00056164,120]
[358178888,1744816368773,-983.87,0.00056164,120]
[358178889,1744816368784,-774.19,0.00056164,120]
[358178890,1744816368796,-519.62,0.00056164,120]
[358178891,1744816368806,-623.30151702,0.00056164,120]
[358178892,1744816368817,-500.0,0.00056164,120]
[358178893,1744816368828,-2150.43,0.00056164,120]
[358178894,1744816368838,-1188.94,0.00056164,120]
[358178895,1744816368848,-500.0,0.00056164,3]
[358178896,1744816368859,-695.81,0.00056164,118]
[358178897,1744816368869,-2664.25,0.00056164,120]
[358178898,1744816368879,-604.56,0.00056164,120]
[358178899,1744816368889,-500.0,0.00056164,120]
[358178900,1744816368899,-1283.85,0.00056164,120]
[358178901,1744816368909,-905.89,0.00056164,120]
[358178902,1744816368920,-748.27,0.00056164,120]
[358178903,1744816368934,-1176.6,0.00056164,120]
[358178904,1744816368947,-866.49,0.00056164,120]
[358178905,1744816368957,-967.07,0.00056164,120]
[358178906,1744816368967,-500.0,0.00056164,120]
[358178907,1744816368976,-500.0,0.00056164,120]
[358178908,1744816368988,-317.82465039,0.00056164,120]
[358178909,1744816368999,-671.83,0.00056164,120]
[358178910,1744816369009,-500.0,0.00056164,120]
[358178911,1744816369018,-1850.78,0.00056164,120]
[358178912,1744816369030,-1800.53,0.00056164,120]
[358178913,1744816369041,-703.86,0.00056164,120]
[358178914,1744816369052,-936.84,0.00056164,120]
[358178915,1744816369063,-546.57,0.00056164,120]
[358178916,1744816369072,-1191.58,0.00056164,35]
[358178917,1744816369082,-1495.21,0.00056164,120]
[358178918,1744816369092,-929.38,0.00056164,120]
[358178919,1744816369102,-717.11,0.00056164,30]
[358178920,1744816369111,-781.09,0.00056164,120]
[358178921,1744816369122,-1870.74,0.00056164,120]
[358178922,1744816369132,-625.39962988,0.00056164,120]
[358178923,1744816369142,-961.01,0.00056164,120]
[358178924,1744816369151,-12177.31,0.00056164,120]
[358178925,1744816369161,-1524.54,0.00056164,120]
[358178926,1744816369171,-3102.96,0.00056164,120]
[358178927,1744816369182,-820.23,0.00056164,120]
[358178928,1744816369192,-742.51,0.00056164,120]
[358178929,1744816369202,-845.8,0.00056164,120]
[358178930,1744816369211,-707.69,0.00056164,120]
[358178931,1744816369220,-522.09,0.00056164,120]
[358178932,1744816369230,-500.0,0.00056164,120]
[358178933,1744816369240,-769.64,0.00056164,120]
[358178934,1744816369250,-500.0,0.00056164,120]
[358178935,1744816369260,-500.0,0.00056164,120]
[358178936,1744816369271,-500.0,0.00056164,120]
[358178937,1744816369281,-1217.91,0.00056164,120]
[358178938,1744816369291,-500.0,0.00056233,120]
[358178939,1744816369301,-150.0,0.0005629,120]
[358178940,1744816369311,-500.0,0.00056438,8]
[358178941,1744816369321,-500.0,0.00056438,120]
[358178942,1744816369331,-507.85,0.00056438,2]
[358178943,1744816369341,-500.0,0.00056438,2]
[358178944,1744816369350,-1354.34,0.00056438,120]
[358178945,1744816369360,-524.21,0.00056438,120]
[358178946,1744816369370,-754.91,0.00056438,120]
[358178947,1744816369379,-795.37,0.00056438,120]
[358178948,1744816369388,-879.05,0.00056438,120]
[358178949,1744816369398,-795.56,0.00056438,120]
[358178950,1744816369408,-691.53,0.00056438,120]
[358178951,1744816369418,-500.0,0.00056438,120]
[358178952,1744816369428,-1105.05,0.00056438,120]
[358178953,1744816369437,-500.0,0.00056438,120]
[358178954,1744816369448,-1002.17,0.00056438,120]
[358178955,1744816369458,-740.53,0.00056438,120]
[358178956,1744816369468,-396.24550693,0.00056438,120]
[358178957,1744816369478,-500.0,0.00056438,120]
[358178958,1744816369487,-563.62,0.00056438,30]
[358178959,1744816369496,-753.23,0.00056438,120]
[358178960,1744816369506,-500.0,0.00056438,120]
[358178961,1744816369515,-508.84,0.00056438,120]
[358178962,1744816369525,-693.95,0.00056438,120]
[358178963,1744816369534,-500.0,0.00056438,14]
[358178964,1744816369545,-1260.37,0.00056438,120]
[358178965,1744816369554,-758.9,0.00056438,120]
[358178966,1744816369564,-1826.89,0.00056438,120]
[358178967,1744816369574,-500.0,0.00056438,120]
[358178968,1744816369583,-500.0,0.00056438,120]
[358178969,1744816369593,-685.02,0.00056438,120]
[358178970,1744816369603,-566.45011383,0.00056438,120]
[358178971,1744816369612,-500.0,0.00056438,120]
[358178972,1744816369623,-667.82,0.00056438,120]
[358178973,1744816369632,-500.0,0.00056438,120]
[358178974,1744816369642,-500.0,0.00056438,120]
[358178975,1744816369652,-1108.66,0.00056438,120]
[358178976,1744816369662,-687.69,0.00056438,120]
[358178977,1744816369672,-1033.16,0.00056438,120]
[358178978,1744816369681,-1795.89,0.00056438,120]
[358178979,1744816369690,-583.59,0.00056438,120]
[358178980,1744816369699,-500.0,0.00056438,120]
[358178981,1744816369709,-500.0,0.00056438,120]
[358178982,1744816369719,-2030.25,0.00056438,120]
[358178983,1744816369729,-500.0,0.00056438,120]
[358178984,1744816369739,-818.2,0.00056438,120]
[358178985,1744816369748,-500.0,0.00056438,120]
[358178986,1744816369758,-771.35,0.00056438,120]
[358178987,1744816369768,-382.95193151,0.00056438,120]
[358178988,1744816369777,-904.17,0.00056438,120]
[358178989,1744816369787,-980.77,0.00056438,120]
[358178990,1744816369796,-500.0,0.00056438,120]
[358178991,1744816369806,-756.77,0.00056438,120]
[358178992,1744816369816,-501.63,0.00056438,120]
[358178993,1744816369826,-1324.33,0.00056438,120]
[358178994,1744816369836,-983.87,0.00056438,120]
[358178995,1744816369846,-774.19,0.00056438,120]
[358178996,1744816369857,-519.62,0.00056438,120]
[358178997,1744816369867,-500.0,0.00056438,120]
[358178998,1744816369877,-2150.43,0.00056438,120]
[358178999,1744816369887,-1188.94,0.00056438,120]
[358179000,1744816369897,-500.0,0.00056438,3]
[358179001,1744816369906,-695.81,0.00056438,118]
[358179002,1744816369916,-2664.25,0.00056438,120]
[358179003,1744816369926,-1200.0,0.00056438,120]
[358179004,1744816369936,-604.56,0.00056438,120]
[358179005,1744816369950,-500.0,0.00056438,120]
[358179006,1744816369960,-1283.85,0.00056438,120]
[358179007,1744816369970,-905.89,0.00056438,120]
[358179008,1744816369980,-748.27,0.00056438,120]
[358179009,1744816369991,-1176.6,0.00056438,120]
[358179010,1744816370000,-866.49,0.00056438,120]
[358179011,1744816370010,-967.07,0.00056438,120]
[358179012,1744816370022,-500.0,0.00056438,120]
[358179013,1744816370032,-500.0,0.00056438,120]
[358179014,1744816370043,-500.0,0.00056438,120]
[358179015,1744816370053,-671.83,0.00056438,120]
[358179016,1744816370062,-500.0,0.00056438,120]
[358179017,1744816370071,-1850.78,0.00056438,120]
[358179018,1744816370080,-1800.53,0.00056438,120]
[358179019,1744816370089,-703.86,0.00056438,120]
[358179020,1744816370098,-936.84,0.00056438,120]
[358179021,1744816370108,-546.57,0.00056438,120]
[358179022,1744816370117,-1191.58,0.00056438,35]
[358179023,1744816370127,-1495.21,0.00056438,120]
[358179024,1744816370135,-929.38,0.00056438,120]
[358179025,1744816370145,-717.11,0.00056438,30]
[358179026,1744816370154,-781.09,0.00056438,120]
[358179027,1744816370163,-1870.74,0.00056438,120]
[358179028,1744816370172,-961.01,0.00056438,120]
[358179029,1744816370181,-12177.31,0.00056438,120]
[358179030,1744816370190,-1524.54,0.00056438,120]
[358179031,1744816370200,-3102.96,0.00056438,120]
[358179032,1744816370210,-820.23,0.00056438,120]
[358179033,1744816370221,-742.51,0.00056438,120]
[358179034,1744816370231,-845.8,0.00056438,120]
[358179035,1744816370241,-707.69,0.00056438,120]
[358179036,1744816370250,-522.09,0.00056438,120]
[358179037,1744816370261,-606.35429033,0.00056438,120]
[358179038,1744816370271,-769.64,0.00056438,120]
[358179039,1744816370282,-500.0,0.00056438,120]
[358179040,1744816370294,-500.0,0.00056438,120]
[358179041,1744816370304,-413.1717441,0.00056438,120]
[358179042,1744816370315,-1217.91,0.00056438,120]
[358179043,1744816370325,-405.78013756,0.00056438,2]
[358179044,1744816370337,-151.21649402,0.00056454,15]
[358179045,1744816370349,-151.0,0.00056493,120]
[358179046,1744816370361,-1000000.0,0.000565,120]
[358179047,1744816370376,-151.0,0.000565,120]
[358179048,1744816370386,-151.0,0.000565,120]
[358179049,1744816370396,-500.0,0.00056507,120]
[358179050,1744816370406,-2000.0,0.00056701,3]
[358179051,1744816370420,-235.72743076,0.00056712,120]
[358179052,1744816370431,-150.0,0.00056712,120]
[358179053,1744816370444,-158.78070661,0.00056712,120]
[358179054,1744816370457,-177.94385871,0.00056712,120]
[358179055,1744816370473,-160.79701301,0.00056712,120]
[358179056,1744816370488,-150.0,0.00056712,120]
[358179057,1744816370498,-150.0,0.00056712,120]
[358179058,1744816370507,-500.0,0.00056712,8]
[358179059,1744816370517,-500.0,0.00056712,120]
[358179060,1744816370527,-507.85,0.00056712,2]
[358179061,1744816370537,-500.0,0.00056712,2]
[358179062,1744816370548,-1354.34,0.00056712,120]
[358179063,1744816370558,-524.21,0.00056712,120]
[358179064,1744816370568,-754.91,0.00056712,120]
[358179065,1744816370578,-795.37,0.00056712,120]
[358179066,1744816370587,-879.05,0.00056712,120]
[358179067,1744816370596,-795.56,0.00056712,120]
[358179068,1744816370605,-691.53,0.00056712,120]
[358179069,1744816370615,-500.0,0.00056712,120]
[358179070,1744816370625,-1105.05,0.00056712,120]
[358179071,1744816370635,-510.39419608,0.00056712,120]
[358179072,1744816370645,-1002.17,0.00056712,120]
[358179073,1744816370655,-740.53,0.00056712,120]
[358179074,1744816370665,-500.0,0.00056712,120]
[358179075,1744816370675,-563.62,0.00056712,30]
[358179076,1744816370685,-753.23,0.00056712,120]
[358179077,1744816370695,-500.0,0.00056712,120]
[358179078,1744816370705,-508.84,0.00056712,120]
[358179079,1744816370715,-693.95,0.00056712,120]
[358179080,1744816370725,-500.0,0.00056712,14]
[358179081,1744816370735,-1260.37,0.00056712,120]
[358179082,1744816370745,-758.9,0.00056712,120]
[358179083,1744816370755,-1826.89,0.00056712,120]
[358179084,1744816370764,-500.0,0.00056712,120]
[358179085,1744816370775,-500.0,0.00056712,120]
[358179086,1744816370785,-685.02,0.00056712,120]
[358179087,1744816370795,-500.0,0.00056712,120]
[358179088,1744816370804,-667.82,0.00056712,120]
[358179089,1744816370814,-233.61683001,0.00056712,120]
[358179090,1744816370824,-500.0,0.00056712,120]
[358179091,1744816370834,-1108.66,0.00056712,120]
[358179092,1744816370843,-687.69,0.00056712,120]
[358179093,1744816370853,-1033.16,0.00056712,120]
[358179094,1744816370863,-1795.89,0.00056712,120]
[358179095,1744816370872,-583.59,0.00056712,120]
[358179096,1744816370882,-629.6375018,0.00056712,120]
[358179097,1744816370892,-500.0,0.00056712,120]
[358179098,1744816370902,-2030.25,0.00056712,120]
[358179099,1744816370994,-500.0,0.00056712,120]
[358179100,1744816371004,-818.2,0.00056712,120]
[358179101,1744816371013,-500.0,0.00056712,120]
[358179102,1744816371023,-771.35,0.00056712,120]
[358179103,1744816371032,-904.17,0.00056712,120]
[358179104,1744816371044,-980.77,0.00056712,120]
[358179105,1744816371054,-152.69344312,0.00056712,120]
[358179106,1744816371064,-500.0,0.00056712,120]
[358179107,1744816371075,-756.77,0.00056712,120]
[358179108,1744816371085,-501.63,0.00056712,120]
[358179109,1744816371095,-1324.33,0.00056712,120]
[358179110,1744816371105,-983.87,0.00056712,120]
[358179111,1744816371115,-774.19,0.00056712,120]
[358179112,1744816371125,-519.62,0.00056712,120]
[358179113,1744816371135,-500.0,0.00056712,120]
[358179114,1744816371144,-2150.43,0.00056712,120]
[358179115,1744816371154,-1188.94,0.00056712,120]
[358179116,1744816371163,-476.75189223,0.00056712,3]
[358179117,1744816371174,-695.81,0.00056712,118]
[358179118,1744816371187,-2664.25,0.00056712,120]
[358179119,1744816371197,-604.56,0.00056712,120]
[358179120,1744816371208,-500.0,0.00056712,120]
[358179121,1744816371220,-1283.85,0.00056712,120]
[358179122,1744816371230,-905.89,0.00056712,120]
[358179123,1744816371241,-748.27,0.00056712,120]
[358179124,1744816371251,-1176.6,0.00056712,120]
[358179125,1744816371262,-866.49,0.00056712,120]
[358179126,1744816371274,-967.07,0.00056712,120]
[358179127,1744816371285,-500.0,0.00056712,120]
[358179128,1744816371296,-500.0,0.00056712,120]
[358179129,1744816371306,-671.83,0.00056712,120]
[358179130,1744816371316,-1850.78,0.00056712,120]
[358179131,1744816371325,-500.0,0.00056712,120]
[358179132,1744816371335,-1800.53,0.00056712,120]
[358179133,1744816371345,-703.86,0.00056712,120]
[358179134,1744816371354,-936.84,0.00056712,120]
[358179135,1744816371363,-546.57,0.00056712,120]
[358179136,1744816371373,-1495.21,0.00056712,120]
[358179137,1744816371382,-929.38,0.00056712,120]
[358179138,1744816371394,-1191.58,0.00056712,35]
[358179139,1744816371403,-717.11,0.00056712,30]
[358179140,1744816371413,-781.09,0.00056712,120]
[358179141,1744816371422,-1870.74,0.00056712,120]
[358179142,1744816371431,-961.01,0.00056712,120]
[358179143,1744816371441,-1524.54,0.00056712,120]
[358179144,1744816371450,-12177.31,0.00056712,120]
[358179145,1744816371459,-3102.96,0.00056712,120]
[358179146,1744816371470,-820.23,0.00056712,120]
[358179147,1744816371479,-742.51,0.00056712,120]
[358179148,1744816371492,-845.8,0.00056712,120]
[358179149,1744816371503,-707.69,0.00056712,120]
[358179150,1744816371512,-522.09,0.00056712,120]
[358179151,1744816371523,-769.64,0.00056712,120]
[358179152,1744816371533,-500.0,0.00056712,120]
[358179153,1744816371546,-500.0,0.00056712,120]
[358179154,1744816371557,-1217.91,0.00056712,120]
[358179155,1744816371568,-235.72743076,0.00056775,120]
[358179156,1744816371577,-177.94385871,0.00056775,120]
[358179157,1744816371587,-500.0,0.00056781,120]
[358179158,1744816371596,-150.0,0.00056799,120]
[358179159,1744816371604,-150.0,0.00056817,120]
[358179160,1744816371615,-235.72743076,0.00056839,120]
[358179161,1744816371624,-177.94385871,0.00056839,120]
[358179162,1744816371632,-670.07,0.0005684,2]
[358179163,1744816371640,-150.0,0.00056887,120]
[358179164,1744816371649,-150.0,0.000569,65]
[358179165,1744816371659,-235.72743076,0.00056903,120]
[358179166,1744816371667,-177.94385871,0.00056903,120]
[358179167,1744816371676,-150.0,0.00056922,120]
[358179168,1744816371685,-150.0,0.00056929,120]
[358179169,1744816371694,-235.72743076,0.00056966,120]
[358179170,1744816371703,-177.94385871,0.00056966,120]
[358179171,1744816371712,-400.0,0.0005697,30]
[358179172,1744816371721,-700.0,0.0005697,30]
[358179173,1744816371731,-150.0,0.00056974,120]
[358179174,1744816371741,-209.0,0.0005698,120]
[358179175,1744816371750,-238.0,0.0005698,30]
[358179176,1744816371760,-235.0,0.0005698,30]
[358179177,1744816371769,-1200.0,0.00056986,120]
[358179178,1744816371779,-500.0,0.00056986,120]
[358179179,1744816371789,-500.0,0.00056986,8]
[358179180,1744816371800,-500.0,0.00056986,120]
[358179181,1744816371810,-507.85,0.00056986,2]
[358179182,1744816371819,-500.0,0.00056986,2]
[358179183,1744816371829,-1354.34,0.00056986,120]
[358179184,1744816371839,-524.21,0.00056986,120]
[358179185,1744816371848,-754.91,0.00056986,120]
[358179186,1744816371858,-795.37,0.00056986,120]
[358179187,1744816371867,-879.05,0.00056986,120]
[358179188,1744816371877,-795.56,0.00056986,120]
[358179189,1744816371886,-691.53,0.00056986,120]
[358179190,1744816371895,-434.47057378,0.00056986,120]
[358179191,1744816371905,-1105.05,0.00056986,120]
[358179192,1744816371915,-1002.17,0.00056986,120]
[358179193,1744816371924,-740.53,0.00056986,120]
[358179194,1744816371934,-422.13243381,0.00056986,120]
[358179195,1744816371945,-563.62,0.00056986,30]
[358179196,1744816371955,-753.23,0.00056986,120]
[358179197,1744816371965,-500.0,0.00056986,120]
[358179198,1744816371975,-508.84,0.00056986,120]
[358179199,1744816371986,-693.95,0.00056986,120]
[358179200,1744816371996,-333.58090976,0.00056986,14]
[358179201,1744816372005,-1260.37,0.00056986,120]
[358179202,1744816372015,-758.9,0.00056986,120]
[358179203,1744816372024,-1826.89,0.00056986,120]
[358179204,1744816372034,-500.0,0.00056986,120]
[358179205,1744816372043,-500.0,0.00056986,120]
[358179206,1744816372052,-685.02,0.00056986,120]
[358179207,1744816372062,-500.0,0.00056986,120]
[358179208,1744816372071,-667.82,0.00056986,120]